bitfinex/quotes_SOLUSD_20250721
["timestamp","ask_amount","ask_price","bid_price","bid_amount"]
[1753110314940,16.78468397,197.35,197.25,20.70246176]
[1753110315143,0.71,197.36,197.27,20.70246176]
[1753110315341,20.70246176,197.33,197.27,20.70246176]
[1753110315542,16.78468397,197.38,197.21,45.13]
[1753110315543,20.70246176,197.29,197.22,0.50704796]
[1753110315870,41.7,197.38,197.22,3.43]
[1753110315871,16.78468397,197.28,197.22,3.43]
[1753110316072,8.3601,197.34,197.27,20.70246176]
[1753110316237,8.3601,197.34,197.3,20.70246176]
[1753110316432,16.78468397,197.33,197.28,0.50689375]
[1753110316637,20.70246176,197.3,197.24,20.70246176]
[1753110317160,29.06256176,197.34,197.28,20.70246176]
[1753110317334,20.70246176,197.33,197.27,20.70246176]
[1753110317537,20.70246176,197.32,197.26,20.70246176]
[1753110317773,20.70246176,197.3,197.24,20.70246176]
[1753110318023,20.70246176,197.25,197.16,0.68]
[1753110318290,20.70246176,197.28,197.17,3.93717654]
[1753110318592,20.70246176,197.23,197.17,3.93717654]
[1753110318757,20.70246176,197.22,197.17,0.50717654]
[1753110319359,5.06765316,197.33,197.2,20.70246176]
[1753110319561,20.70246176,197.28,197.21,21.20953543]
[1753110319856,16.78468397,197.31,197.22,20.70246176]
[1753110320074,20.70246176,197.26,197.2,20.70246176]
[1753110320382,20.70246176,197.25,197.2,20.70246176]
[1753110320759,0.71,197.29,197.2,20.70246176]
[1753110320966,20.70246176,197.26,197.19,0.5071251]
[1753110321287,16.78468397,197.28,197.21,15.63040698]
[1753110321457,16.78468397,197.28,197.2,26.0]
[1753110321674,16.78468397,197.28,197.18,0.68]
[1753110321675,16.78468397,197.31,197.22,15.63040698]
[1753110321870,15.63040698,197.3,197.24,15.63040698]
[1753110322174,15.63040698,197.3,197.23,0.50702225]
[1753110322175,32.41509095,197.32,197.26,15.63040698]
[1753110322381,23.99050698,197.34,197.28,15.63040698]
[1753110322585,8.3601,197.34,197.27,1.18691945]
[1753110322877,19.56410698,197.39,197.33,15.63040698]
[1753110323291,19.56410698,197.39,197.32,0.50679099]
[1753110323292,15.63040698,197.34,197.32,0.50679099]
[1753110323458,0.71,197.38,197.22,0.68]
[1753110323657,15.63040698,197.25,197.24,6.49]
[1753110324259,0.71,197.31,197.24,6.49]
[1753110324469,0.71,197.36,197.25,0.50697084]
[1753110324682,15.63040698,197.3,197.25,0.50697084]
[1753110324856,15.63040698,197.29,197.25,0.50697084]
[1753110325355,15.63040698,197.29,197.25,1.18697084]
[1753110326282,15.63040698,197.29,197.25,0.50697084]
[1753110326458,15.63040698,197.29,197.23,7.67702225]
[1753110327184,3.9337,197.39,197.23,7.67702225]
[1753110327185,3.9337,197.39,197.24,0.68]
[1753110327399,15.63040698,197.33,197.28,26.0]
[1753110327560,15.63040698,197.32,197.29,0.50686806]
[1753110327764,3.9337,197.39,197.3,0.68]
[1753110327990,15.63040698,197.35,197.31,0.50681668]
[1753110328159,3.9337,197.39,197.29,15.63040698]
[1753110328160,15.63040698,197.33,197.29,0.50686806]
[1753110328366,15.63040698,197.33,197.28,26.50689375]
[1753110328583,15.63040698,197.32,197.28,26.50689375]
[1753110329267,15.63040698,197.35,197.29,15.63040698]
[1753110329474,16.78468397,197.38,197.31,15.63040698]
[1753110329682,4.6437,197.39,197.31,15.63040698]
[1753110330158,15.63040698,197.38,197.32,15.63040698]
[1753110330361,19.56410698,197.39,197.33,15.63040698]
[1753110330571,15.63040698,197.35,197.29,26.0]
[1753110330797,3.9337,197.39,197.32,15.63040698]
[1753110330972,3.9337,197.39,197.3,0.50684237]
[1753110330973,15.63040698,197.38,197.3,0.50684237]
[1753110331167,20.71838397,197.39,197.33,15.63040698]
[1753110331364,3.9337,197.39,197.34,15.63040698]
[1753110331981,0.69,197.44,197.36,15.63040698]
[1753110332185,23.67880698,197.42,197.36,15.63040698]
[1753110332391,4.0338,197.47,197.38,15.63040698]
[1753110332681,15.63040698,197.44,197.39,0.50661127]
[1753110332888,15.63040698,197.45,197.39,0.50661127]
[1753110333273,15.63040698,197.43,197.37,15.63040698]
[1753110333779,15.63040698,197.39,197.33,26.0]
[1753110333988,12.65901348,197.49,197.33,26.0]
[1753110333989,0.1,197.62,197.42,20.73145243]
[1753110334187,55.77029056,197.7,197.56,26.0]
[1753110334394,55.77029056,197.7,197.43,122.0910342]
[1753110334395,55.77029056,197.7,197.66,15.63040698]
[1753110334583,55.77029056,197.7,197.57,55.79016551]
[1753110334584,7.8935,197.68,197.57,12.8240158]
[1753110334782,15.63040698,197.65,197.57,0.50614971]
[1753110334984,0.69,197.64,197.5,3.35]
[1753110335182,16.32040698,197.64,197.57,15.63040698]
[1753110335589,0.69,197.64,197.58,15.63040698]
[1753110335903,0.69,197.64,197.51,0.50630347]
[1753110335904,15.63040698,197.63,197.56,15.63040698]
[1753110336101,15.63040698,197.61,197.5,3.35]
[1753110336282,0.69,197.6,197.5,2.64]
[1753110336600,15.63040698,197.55,197.5,2.64]
[1753110336787,26.0,197.6,197.5,2.64]
[1753110336984,15.63040698,197.56,197.5,2.64]
[1753110337179,15.63040698,197.54,197.5,2.64]
[1753110337379,15.63040698,197.51,197.5,2.64]
[1753110337598,15.63040698,197.51,197.43,0.58646088]
[1753110337599,12.1816,197.5,197.43,0.58646088]
[1753110337797,15.63040698,197.44,197.43,0.58646088]
[1753110337994,0.69,197.47,197.43,0.58646088]
[1753110338183,5.06354752,197.49,197.43,0.58646088]
[1753110338184,15.63040698,197.44,197.43,0.58646088]
[1753110339300,20.6813638,197.44,197.43,0.58646088]
[1753110339594,21.3713638,197.44,197.43,0.58646088]
[1753110339799,0.69,197.44,197.43,0.58646088]
[1753110339999,21.3713638,197.44,197.43,0.58646088]
[1753110340180,5.06380392,197.48,197.43,0.58646088]
[1753110340483,20.6813638,197.44,197.43,0.58646088]
[1753110340883,21.3713638,197.44,197.43,0.58646088]
[1753110341083,5.06380392,197.48,197.43,0.58646088]
[1753110341283,20.6813638,197.44,197.43,0.58646088]
[1753110341493,20.6813638,197.46,197.43,0.58646088]
[1753110341696,20.6813638,197.47,197.43,0.58646088]
[1753110341885,12.1816,197.5,197.43,0.58646088]
[1753110342085,12.1816,197.5,197.44,20.6813638]
[1753110342293,8.2965,197.5,197.44,20.6813638]
[1753110342492,28.9778638,197.5,197.44,20.6813638]
[1753110342699,20.6813638,197.49,197.43,21.26782468]
[1753110343012,20.6813638,197.46,197.43,0.58646088]
[1753110343313,20.6813638,197.44,197.43,0.58646088]
[1753110343512,21.3713638,197.44,197.43,0.58646088]
[1753110343718,20.6813638,197.44,197.43,0.58646088]
[1753110343885,8.2965,197.5,197.43,0.58646088]
[1753110344094,0.69,197.57,197.44,0.71]
[1753110344412,20.6813638,197.56,197.5,20.6813638]
[1753110344615,37.46604777,197.55,197.49,20.6813638]
[1753110344914,16.78468397,197.55,197.5,20.6813638]
[1753110345122,20.6813638,197.53,197.47,21.3913638]
[1753110345286,5.81138825,197.58,197.49,20.6813638]
[1753110345287,20.6813638,197.55,197.49,20.6813638]
[1753110345485,37.46604777,197.54,197.48,20.6813638]
[1753110346984,16.78468397,197.54,197.49,20.6813638]
[1753110347187,20.6813638,197.56,197.5,20.6813638]
[1753110347389,16.78468397,197.55,197.51,20.6813638]
[1753110347806,37.46604777,197.56,197.5,20.6813638]
[1753110348420,20.6813638,197.51,197.43,1.29646088]
[1753110348621,20.6813638,197.51,197.46,20.6813638]
[1753110348921,16.78468397,197.51,197.46,21.3913638]
[1753110349122,16.78468397,197.55,197.47,0.41]
[1753110349432,16.78468397,197.47,197.43,0.58646088]
[1753110349590,20.6813638,197.45,197.43,0.58646088]
[1753110349793,37.46604777,197.47,197.43,0.58646088]
[1753110350006,20.6813638,197.51,197.45,20.6813638]
[1753110350215,16.78468397,197.52,197.47,20.6813638]
[1753110350605,16.78468397,197.52,197.43,1.09296951]
[1753110350606,20.6813638,197.56,197.5,20.6813638]
[1753110350801,16.78468397,197.55,197.51,20.6813638]
[1753110351025,16.78468397,197.55,197.43,1.09296951]
[1753110351026,16.78468397,197.54,197.43,1.09296951]
[1753110351200,16.78468397,197.54,197.49,20.6813638]
[1753110351395,0.06,197.58,197.52,20.6813638]
[1753110351598,20.7413638,197.58,197.53,20.6813638]
[1753110351792,0.06,197.58,197.54,20.6813638]
[1753110352599,0.06,197.58,197.53,20.6813638]
[1753110353209,20.7413638,197.58,197.53,20.6813638]
[1753110353409,16.78468397,197.57,197.52,20.6813638]
[1753110353596,16.78468397,197.57,197.53,20.6813638]
[1753110353813,0.06,197.58,197.54,20.6813638]
[1753110354014,0.06,197.58,197.55,20.6813638]
[1753110355698,0.06,197.58,197.57,20.6813638]
[1753110355910,16.78468397,197.57,197.48,0.50638039]
[1753110356105,20.7413638,197.58,197.39,4.8521]
[1753110356106,16.78468397,197.48,197.42,0.71]
[1753110356304,16.78468397,197.52,197.44,20.6813638]
[1753110356305,20.6813638,197.5,197.44,20.6813638]
[1753110356614,37.46604777,197.48,197.43,0.58646088]
[1753110356801,20.6813638,197.46,197.43,0.58646088]
[1753110357001,16.78468397,197.48,197.43,0.58646088]
[1753110357002,20.6813638,197.45,197.43,0.58646088]
[1753110357406,21.3713638,197.46,197.43,0.58646088]
[1753110357602,17.47468397,197.46,197.43,0.58646088]
[1753110357999,16.78468397,197.48,197.43,21.26782468]
[1753110358315,16.78468397,197.46,197.43,0.58646088]
[1753110358522,5.06365009,197.49,197.43,0.58646088]
[1753110358704,16.78468397,197.46,197.43,0.58646088]
[1753110358903,21.3713638,197.45,197.43,0.58646088]
[1753110359098,37.46604777,197.44,197.43,0.58646088]
[1753110359299,33.08170609,197.44,197.37,15.60702212]
[1753110359514,15.60702212,197.43,197.37,15.60702212]
[1753110359717,41.58,197.48,197.41,15.60702212]
[1753110360020,16.78468397,197.44,197.38,26.0]
[1753110360321,16.78468397,197.47,197.39,0.50661127]
[1753110360520,16.78468397,197.4,197.36,0.50161827]
[1753110360720,17.47468397,197.4,197.36,0.50161827]
[1753110360906,17.47468397,197.45,197.37,15.60702212]
[1753110361102,32.39170609,197.38,197.36,0.50161827]
[1753110361327,26.0,197.47,197.26,15.60702212]
[1753110361328,16.78468397,197.36,197.26,15.60702212]
[1753110361619,15.60702212,197.4,197.23,0.72]
[1753110361620,16.78468397,197.32,197.23,0.72]
[1753110361805,0.71,197.35,197.29,15.60702212]
[1753110361999,0.71,197.35,197.24,0.50699655]
[1753110362000,0.71,197.39,197.33,15.60702212]
[1753110362221,16.78468397,197.38,197.25,0.72]
[1753110362418,0.71,197.39,197.25,0.72]
[1753110362419,16.78468397,197.36,197.32,15.60702212]
[1753110362641,17.49468397,197.36,197.31,15.60702212]
[1753110363120,16.78468397,197.36,197.31,15.60702212]
[1753110363420,0.021684,197.33,197.28,15.60702212]
[1753110363600,0.021684,197.33,197.31,15.60702212]
[1753110363813,0.021684,197.33,197.23,0.50702225]
[1753110363814,0.021684,197.33,197.32,15.60702212]
[1753110364223,0.021684,197.33,197.28,1.22689375]
[1753110364417,0.021684,197.33,197.31,15.60702212]
[1753110364610,0.021684,197.33,197.3,15.60702212]
[1753110364811,0.021684,197.33,197.18,15.3]
[1753110364812,15.62870612,197.33,197.2,0.50709939]
[1753110365006,15.62870612,197.33,197.13,10.0]
[1753110365007,16.78468397,197.3,197.16,42.00720227]
[1753110365220,16.78468397,197.3,197.21,15.60702212]
[1753110365421,16.78468397,197.24,197.19,15.60702212]
[1753110365625,17.49468397,197.24,197.17,26.0]
[1753110365836,17.49468397,197.24,197.15,0.72]
[1753110365837,15.60702212,197.22,197.15,0.72]
[1753110366008,16.78468397,197.22,197.1,0.72]
[1753110366206,15.60702212,197.18,197.1,0.72]
[1753110366416,5.07022258,197.23,197.06,0.75]
[1753110366417,16.78468397,197.15,197.06,0.75]
[1753110366640,16.78468397,197.15,197.1,15.60702212]
[1753110367010,16.78468397,197.15,197.06,0.75]
[1753110367313,41.48,197.22,197.06,0.75]
[1753110367314,16.78468397,197.13,197.06,0.03]
[1753110367513,16.78468397,197.11,197.06,0.03]
[1753110367911,0.71,197.12,197.06,0.03]
[1753110367912,16.31702212,197.1,197.06,0.03]
[1753110368224,16.78468397,197.12,197.06,0.03]
[1753110368225,15.60702212,197.07,197.06,0.03]
[1753110368426,32.39170609,197.07,197.06,0.03]
[1753110368624,17.49468397,197.07,197.06,0.03]
[1753110368805,33.10170609,197.07,197.06,0.03]
[1753110369011,16.78468397,197.07,197.06,0.03]
[1753110369237,15.60702212,197.07,197.06,0.03]
[1753110369542,16.31702212,197.07,197.06,0.03]
[1753110369844,15.60702212,197.09,197.06,0.03]
[1753110370007,16.62794421,197.18,197.06,0.03]
[1753110370008,16.78468397,197.1,197.06,0.03]
[1753110370207,16.78468397,197.1,197.07,26.0]
[1753110370434,16.78468397,197.1,197.06,0.008316]
[1753110370672,16.78468397,197.12,197.08,15.60702212]
[1753110370975,16.78468397,197.12,197.06,0.008316]
[1753110370976,16.78468397,197.08,197.06,0.008316]
[1753110371148,15.60702212,197.07,197.06,0.008316]
[1753110371476,33.10170609,197.07,197.06,0.008316]
[1753110371678,17.49468397,197.07,197.06,0.008316]
[1753110371981,33.10170609,197.07,197.06,0.008316]
[1753110372557,17.49468397,197.07,197.06,0.008316]
[1753110372947,33.10170609,197.07,197.06,0.008316]
[1753110373551,32.39170609,197.04,197.03,0.2]
[1753110373753,32.39170609,197.04,196.99,0.03]
[1753110373754,15.60702212,197.04,196.99,0.03]
[1753110374069,32.39170609,197.0,196.99,0.03]
[1753110374298,0.71,197.06,196.99,0.03]
[1753110374600,32.39170609,197.05,197.0,15.60702212]
[1753110374799,15.60702212,197.04,196.99,15.63702212]
[1753110374972,16.78468397,197.03,196.99,15.63702212]
[1753110375366,32.39170609,197.03,196.99,0.03]
[1753110375575,32.39170609,197.0,196.99,0.03]
[1753110376096,33.10170609,197.0,196.99,0.03]
[1753110377195,16.78468397,197.0,196.99,0.03]
[1753110377586,32.39170609,197.0,196.99,0.03]
[1753110377792,38.17784822,197.0,196.99,0.03]
[1753110377965,17.49468397,197.0,196.99,0.03]
[1753110378169,33.10170609,197.0,196.99,0.03]
[1753110378370,38.17784822,197.0,196.99,0.03]
[1753110378671,36.0,197.08,196.97,0.03]
[1753110378672,0.71,197.06,196.97,0.03]
[1753110378878,15.60702212,197.01,196.97,0.03]
[1753110379074,17.49468397,197.0,196.97,0.03]
[1753110379285,16.78468397,197.0,196.97,0.03]
[1753110379592,16.78468397,196.99,196.97,0.03]
[1753110380398,16.78468397,197.03,196.97,0.03]
[1753110380691,16.78468397,197.0,196.97,0.03]
[1753110381070,0.71,197.04,196.97,0.03]
[1753110381386,15.60702212,197.08,196.98,0.72]
[1753110381570,32.39170609,197.04,196.99,5.07639981]
[1753110381765,15.60702212,197.0,196.97,0.03]
[1753110381970,16.78468397,196.97,196.82,0.72]
[1753110382299,16.78468397,196.83,196.78,15.60702212]
[1753110382684,16.78468397,196.83,196.79,15.60702212]
[1753110382877,16.78468397,196.83,196.76,0.03]
[1753110383073,16.78468397,196.79,196.76,0.03]
[1753110383591,32.39170609,196.77,196.72,0.03]
[1753110383769,32.39170609,196.77,196.68,0.03]
[1753110383770,16.78468397,196.72,196.68,0.03]
[1753110383969,32.39170609,196.69,196.68,0.03]
[1753110384176,16.78468397,196.69,196.68,0.03]
[1753110384404,16.78468397,196.84,196.68,21.44130213]
[1753110384570,16.78468397,196.82,196.78,15.60702212]
[1753110384773,32.39170609,196.84,196.76,0.72]
[1753110384975,16.78468397,196.84,196.73,0.72]
[1753110385274,15.60702212,196.81,196.73,0.72]
[1753110385516,15.60702212,196.81,196.75,15.60702212]
[1753110385792,12.69692674,196.9,196.75,15.60702212]
[1753110385793,15.60702212,196.86,196.8,15.60702212]
[1753110385983,15.60702212,196.83,196.76,26.72]
[1753110386194,17.7737152,196.92,196.73,5.08300866]
[1753110386195,15.60702212,196.8,196.74,41.60702212]
[1753110386493,16.78468397,196.78,196.68,0.03]
[1753110386706,0.71,196.83,196.68,0.03]
[1753110386707,32.39170609,196.72,196.68,0.03]
[1753110386995,15.60702212,196.69,196.68,0.03]
[1753110387294,16.78468397,196.7,196.68,0.03]
[1753110387486,38.18584864,196.69,196.68,0.03]
[1753110387793,22.57882652,196.69,196.68,0.03]
[1753110387973,38.18584864,196.69,196.68,0.03]
[1753110388169,16.78468397,196.68,196.53,0.50882816]
[1753110388375,32.39170609,196.64,196.58,15.60702212]
[1753110388582,32.39170609,196.64,196.55,0.72]
[1753110388583,34.483,196.75,196.62,15.60702212]
[1753110388787,0.71,196.74,196.59,0.72]
[1753110388991,16.78468397,196.66,196.61,15.60702212]
[1753110389193,16.78468397,196.66,196.55,0.72]
[1753110389420,15.60702212,196.6,196.51,0.72]
[1753110389601,15.60702212,196.54,196.49,0.46089744]
[1753110389909,16.78468397,196.52,196.49,0.46089744]
[1753110390097,16.78468397,196.52,196.46,0.2]
[1753110390098,32.39170609,196.5,196.46,0.2]
[1753110390296,16.78468397,196.5,196.46,0.2]
[1753110390505,16.78468397,196.52,196.46,0.2]
[1753110390802,8.3716,196.55,196.46,0.2]
[1753110390988,16.78468397,196.55,196.46,0.2]
[1753110391188,15.60702212,196.58,196.53,15.60702212]
[1753110391418,16.78468397,196.59,196.57,15.60702212]
[1753110391590,16.78468397,196.62,196.58,15.60702212]
[1753110391790,5.76388408,196.7,196.59,0.66]
[1753110391998,5.76388408,196.7,196.61,15.60702212]
[1753110391999,15.60702212,196.67,196.61,15.60702212]
[1753110392197,5.76388408,196.7,196.59,0.66]
[1753110392503,12.0331,196.71,196.59,0.66]
[1753110392682,0.68,196.7,196.59,0.66]
[1753110392887,15.60702212,196.67,196.61,15.60702212]
[1753110393091,16.78468397,196.66,196.56,5.08745868]
[1753110393389,32.39170609,196.63,196.52,0.66]
[1753110393589,16.78468397,196.63,196.58,15.60702212]
[1753110393794,16.78468397,196.63,196.52,0.66]
[1753110393795,16.78468397,196.66,196.62,15.60702212]
[1753110394112,12.0331,196.71,196.56,26.0]
[1753110394113,16.78468397,196.68,196.63,15.60702212]
[1753110394304,16.78468397,196.68,196.59,0.66]
[1753110394305,16.78468397,196.68,196.64,15.60702212]
[1753110394504,7.8678,196.71,196.67,15.60702212]
[1753110394697,16.78468397,196.7,196.67,15.60702212]
[1753110394901,15.60702212,196.76,196.69,15.60702212]
[1753110395098,15.60702212,196.76,196.67,0.66]
[1753110395099,15.60702212,196.75,196.63,0.66]
[1753110395293,15.60702212,196.73,196.63,0.66]
[1753110395599,16.78468397,196.71,196.69,15.60702212]
[1753110395804,16.78468397,196.74,196.69,15.60702212]
[1753110395989,16.78468397,196.74,196.7,15.60702212]
[1753110396188,16.78468397,196.75,196.66,26.66]
[1753110396415,16.78468397,196.75,196.71,15.60702212]
[1753110396603,16.78468397,196.76,196.71,15.60702212]
[1753110396784,3.8646,196.81,196.75,15.60702212]
[1753110396990,8.3219,196.82,196.72,0.66]
[1753110397205,8.3219,196.82,196.76,15.60702212]
[1753110397395,8.3219,196.82,196.76,5.0823338]
[1753110397594,15.60702212,196.86,196.8,15.60702212]
[1753110397916,15.60702212,196.87,196.81,15.60702212]
[1753110398210,0.68,196.88,196.75,0.66]
[1753110398211,15.60702212,196.82,196.75,15.60702212]
[1753110398410,16.78468397,196.8,196.7,0.66]
[1753110398619,16.78468397,196.8,196.74,15.60702212]
[1753110398620,32.39170609,196.8,196.74,15.60702212]
[1753110398807,32.39170609,196.78,196.72,15.60702212]
[1753110399319,32.39170609,196.78,196.67,26.0]
[1753110399320,32.39170609,196.75,196.7,15.60702212]
[1753110399613,15.60702212,196.75,196.65,5.7451767]
[1753110399795,32.39170609,196.75,196.65,5.7451767]
[1753110399998,15.60702212,196.74,196.68,15.60702212]
[1753110400717,0.47,196.76,196.68,15.60702212]
[1753110400718,16.78468397,196.72,196.68,15.60702212]
[1753110400892,32.39170609,196.7,196.64,15.60702212]
[1753110402008,16.78468397,196.7,196.66,15.60702212]
[1753110402211,32.86170609,196.7,196.64,15.60702212]
[1753110402405,7.8958,196.73,196.64,15.60702212]
[1753110402406,16.78468397,196.72,196.64,15.60702212]
[1753110402610,16.78468397,196.7,196.65,15.60702212]
[1753110402828,32.39170609,196.72,196.66,15.60702212]
[1753110403114,32.39170609,196.72,196.62,5.08575199]
[1753110403115,16.78468397,196.69,196.65,15.60702212]
[1753110403511,16.78468397,196.72,196.62,5.74575199]
[1753110403713,16.78468397,196.72,196.66,15.60702212]
[1753110403897,32.39170609,196.72,196.66,15.60702212]
[1753110404097,16.78468397,196.72,196.65,0.66]
[1753110404410,16.78468397,196.72,196.63,15.60702212]
[1753110404411,15.60702212,196.69,196.63,15.60702212]
[1753110404607,16.78468397,196.65,196.6,20.69326261]
[1753110404822,16.78468397,196.65,196.6,5.08624049]
[1753110404998,15.60702212,196.63,196.58,15.60702212]
[1753110405314,43.79189608,196.72,196.58,15.60702212]
[1753110405315,0.68,196.66,196.58,5.08692376]
[1753110405524,16.78468397,196.7,196.61,15.60702212]
[1753110405703,16.78468397,196.68,196.63,15.60702212]
[1753110405900,16.78468397,196.68,196.58,13.37746871]
[1753110405901,0.68,196.67,196.62,15.60702212]
[1753110406218,0.42588,196.67,196.62,15.60702212]
[1753110406405,0.42588,196.67,196.61,15.60702212]
[1753110406612,0.42588,196.67,196.62,15.60702212]
[1753110406806,11.9161,196.73,196.65,15.60702212]
[1753110407014,16.78468397,196.7,196.66,15.60702212]
[1753110407210,16.78468397,196.72,196.68,15.60702212]
[1753110407795,16.78468397,196.72,196.7,15.60702212]
[1753110408049,16.78468397,196.72,196.66,0.66]
[1753110408050,16.78468397,196.72,196.71,15.60702212]
[1753110408401,16.78468397,196.72,196.67,5.08465958]
[1753110408607,16.78468397,196.72,196.67,15.60702212]
[1753110409197,16.78468397,196.72,196.68,15.60702212]
[1753110409398,15.60702212,196.78,196.71,15.60702212]
[1753110409618,16.78468397,196.81,196.74,15.60702212]
[1753110409920,4.0155,196.82,196.73,5.74298421]
[1753110410128,15.60702212,196.8,196.74,15.60702212]
[1753110410314,9.09651132,196.82,196.74,15.60702212]
[1753110410629,16.78468397,196.79,196.74,15.60702212]
[1753110410831,16.78468397,196.79,196.75,15.60702212]
[1753110411032,15.60702212,196.81,196.66,26.0]
[1753110411033,15.60702212,196.77,196.71,15.60702212]
[1753110411326,16.78468397,196.75,196.7,15.60702212]
[1753110411519,16.78468397,196.75,196.66,26.66]
[1753110411520,15.60702212,196.74,196.66,0.66]
[1753110411701,32.39170609,196.71,196.64,5.08540994]
[1753110411897,32.39170609,196.71,196.56,0.03]
[1753110411898,16.78468397,196.69,196.57,12.71786027]
[1753110412102,16.78468397,196.69,196.64,15.60702212]
[1753110412314,16.78468397,196.7,196.65,15.60702212]
[1753110412809,12.70716406,196.74,196.69,15.60702212]
[1753110412810,16.78468397,196.74,196.69,15.60702212]
[1753110413112,0.39,196.79,196.72,15.60702212]
[1753110413311,4.0155,196.82,196.75,15.60702212]
[1753110413507,4.0155,196.82,196.7,15.60702212]
[1753110413705,16.78468397,196.81,196.77,15.60702212]
[1753110413921,16.78468397,196.81,196.7,15.60702212]
[1753110413922,16.78468397,196.79,196.7,0.66]
[1753110414132,32.39170609,196.75,196.69,15.60702212]
[1753110414303,16.78468397,196.73,196.68,15.60702212]
[1753110414632,15.60702212,196.75,196.69,15.60702212]
[1753110415009,16.78468397,196.8,196.73,15.60702212]
[1753110415325,16.78468397,196.78,196.73,15.60702212]
[1753110415709,16.78468397,196.8,196.75,15.60702212]
[1753110415902,16.78468397,196.8,196.63,25.93672954]
[1753110415903,0.39,196.79,196.63,0.50856939]
[1753110416105,0.39,196.79,196.56,10.03]
[1753110416106,3.03822137,196.79,196.62,5.08595259]
[1753110416436,15.60702212,196.76,196.69,15.60702212]
[1753110416915,15.60702212,196.76,196.64,0.66]
[1753110416916,16.78468397,196.75,196.64,0.66]
[1753110417234,32.39170609,196.75,196.69,15.60702212]
[1753110417606,16.78468397,196.75,196.7,15.60702212]
[1753110417814,16.78468397,196.73,196.68,15.60702212]
[1753110418328,16.78468397,196.77,196.71,15.60702212]
[1753110418636,16.78468397,196.71,196.65,15.60702212]
[1753110418933,16.78468397,196.69,196.64,0.66]
[1753110419417,16.78468397,196.69,196.57,41.46]
[1753110419418,15.60702212,196.67,196.61,15.60702212]
[1753110419612,41.36,196.72,196.65,15.60702212]
[1753110419613,16.78468397,196.72,196.65,15.60702212]
[1753110419814,16.78468397,196.69,196.65,15.60702212]
[1753110420116,0.68,196.73,196.68,15.60702212]
[1753110420117,16.78468397,196.73,196.68,15.60702212]
[1753110420416,20.68731567,196.84,196.72,15.60702212]
[1753110420624,5.08052768,196.83,196.78,15.60702212]
[1753110421203,5.08052768,196.83,196.76,15.60702212]
[1753110421408,5.08052768,196.83,196.69,26.50841425]
[1753110421409,16.78468397,196.8,196.75,15.60702212]
[1753110421930,2.64743151,196.86,196.77,15.60702212]
[1753110422132,15.60702212,196.88,196.82,15.60702212]
[1753110422314,15.60702212,196.85,196.79,15.60702212]
[1753110422624,4.8569,196.91,196.84,15.60702212]
[1753110422830,23.94622212,196.94,196.88,15.60702212]
[1753110423066,3.8163,196.99,196.93,15.60702212]
[1753110423208,9.1092,197.02,196.98,15.60702212]
[1753110423209,8.3992,197.02,196.98,15.60702212]
[1753110423408,0.06,197.02,197.0,15.60702212]
[1753110423627,0.06,197.02,196.89,0.50789781]
[1753110423628,0.06,197.02,197.01,15.60702212]
[1753110424014,30.06,197.02,197.01,15.60702212]
[1753110424627,30.06,197.02,196.92,12.6953684]
[1753110424628,30.06,197.02,196.85,10.50800101]
[1753110424831,30.06,197.02,197.0,15.60702212]
[1753110424832,16.78468397,197.01,197.0,15.60702212]
[1753110425022,30.06,197.02,197.0,15.60702212]
[1753110425221,30.06,197.02,197.01,16.28702212]
[1753110425534,0.06,197.02,197.01,0.68]
[1753110425721,0.06,197.02,197.01,16.28702212]
[1753110425920,0.06,197.02,197.01,0.68]
[1753110426122,0.06,197.02,197.01,16.28702212]
[1753110426629,0.06,197.02,197.01,15.60702212]
[1753110427049,0.06,197.02,197.01,16.28702212]
[1753110427649,10.0,197.17,197.01,16.28702212]
[1753110427650,7.8686,197.16,197.04,26.0]
[1753110427838,5.07201401,197.17,197.06,26.0]
[1753110428157,5.07201401,197.17,197.11,15.60702212]
[1753110428158,20.67903613,197.17,197.11,15.60702212]
[1753110428359,33.35844983,197.17,197.05,0.68]
[1753110428648,33.35844983,197.17,197.12,15.60702212]
[1753110428830,16.78468397,197.15,197.09,15.60702212]
[1753110429029,16.78468397,197.15,197.01,0.68]
[1753110429030,15.60702212,197.12,197.01,0.68]
[1753110429237,17.75142771,197.17,197.1,15.60702212]
[1753110429447,17.75142771,197.17,197.01,0.68]
[1753110429448,16.78468397,197.16,197.09,15.60702212]
[1753110429652,15.60702212,197.12,197.06,15.60702212]